[Event "Romanian Team Blitz Open 2022"]
[Site "Sebes"]
[Date "2022.12.04"]
[Round "8.25"]
[White "Neacsu, Mircea"]
[Black "Zaim, Marian"]
[Result "1/2-1/2"]
[ECO "E68"]
[WhiteElo "1901"]
[BlackElo "1935"]
[Annotator "TA"]
[PlyCount "122"]
[EventDate "2022.12.04"]
[EventType "blitz"]
[EventCountry "ROU"]
[SourceTitle "playchess.com"]
[Source "ChessBase"]
[SourceQuality "1"]
[TimeControl "180+2"]

{[%evp 17,122,7,21,-31,-1,-4,45,18,6,12,11,0,20,0,0,-38,-24,-33,-33,-27,-18,-29,-5,-23,-15,-28,-23,-72,-78,-52,-14,-28,-19,-110,-72,-122,0,0,0,-14,-3,-61,0,0,27,27,46,26,52,27,51,34,48,48,64,41,48,38,101,101,101,101,101,101,101,101,141,141,141,89,120,0,0,0,131,131,131,131,204,204,204,204,204,204,204,204,204,204,204,204,204,204,204,204,204,204,204,204,204,204,204,204,204,204,204,204,204]} 1. d4 {[%emt 0:00:01]} Nf6 {[%emt 0:00:01]} 2. Nf3 {[%emt 0:00:01]} g6 {[%emt 0:00:02]} 3. g3 {[%emt 0:00:01]} Bg7 {[%emt 0:00:03]} 4. Bg2 {[%emt 0:00:01]} O-O {[%emt 0:00:02]} 5. O-O {[%emt 0:00:01]} d6 {[%emt 0:00:06]} 6. c4 {[%emt 0:00:02]} Nbd7 {[%emt 0:00:01]} 7. Nc3 {[%emt 0:00:02]} c6 {[%emt 0:00:03]} 8. e4 {[%emt 0:00:01]} e5 {[%emt 0:00:01]} 9. dxe5 {[%emt 0:00:02]} dxe5 {[%emt 0:00:02]} 10. Bg5 {[%emt 0:00:10] E68: King's Indian: Fianchetto: 6...Nbd7 7 0-0 e5 8 e4.} ({Better is} 10. Qc2 $11) 10... Qc7 {[%emt 0:00:16]} 11. Qc2 {[%emt 0:00:09]} a5 {[%emt 0:00:02] [#]} (11... Nc5 $11) 12. Rac1 $146 {[%emt 0:00:08] White is slightly better.} (12. Na4 $5 {[%cal Rc4c5]}) ({Predecessor:} 12. Rad1 Nc5 13. Be3 Qe7 14. Rd2 Ng4 15. Bxc5 Qxc5 16. h3 Nf6 17. Na4 Qe7 18. Rfd1 {1-0 (39) Necke,S-Farhad,K Berlin 1997}) 12... Nc5 {[%emt 0:00:03]} 13. Be3 {[%emt 0:00:15]} Nfd7 {[%emt 0:00:25]} 14. b3 {[%emt 0:00:12]} Re8 {[%emt 0:00:07]} 15. Rfe1 {[%emt 0:00:10]} Bf8 {[%emt 0:00:10]} 16. h4 {[%emt 0:00:11]} Na6 {[%emt 0:00:05]} 17. Rcd1 {[%emt 0:00:32][%cal Oh4h5]} Ndc5 {[%emt 0:00:09][%cal Oa5a4]} 18. Rd2 {[%emt 0:00:24] Prevents a4.} h6 {[%emt 0:00:04]} 19. Red1 {[%emt 0:00:02][%cal Oh4h5]} Be6 {[%emt 0:00:03]} 20. Ne1 {[%emt 0:00:10]} Rad8 {[%emt 0:00:08]} 21. f3 {[%emt 0:00:04]} Kh7 {[%emt 0:00:14]} 22. Kf2 {[%emt 0:00:01]} (22. Bf1 $11 {feels stronger.}) 22... Rxd2+ {[%emt 0:00:03]} 23. Qxd2 {[%emt 0:00:04]} b6 {[%emt 0:00:21]} 24. Nc2 {[%emt 0:00:07]} Bc8 {[%emt 0:00:14]} 25. g4 {[%emt 0:00:05]} (25. Kg1 $11 {keeps the balance.}) 25... Be6 {[%emt 0:00:04]} 26. h5 {[%emt 0:00:08]} (26. Kg1 $142) 26... g5 {[%emt 0:00:02]} (26... gxh5 $1 $17 {...Be7 is the strong threat.} 27. gxh5 Qe7) 27. Bf1 {[%emt 0:00:12]} Be7 {[%emt 0:00:01]} 28. Be2 {[%emt 0:00:02]} Rd8 {[%emt 0:00:01]} (28... Kg8 {simplifies} 29. Kf1 Bc8 30. Bf2 Ne6) 29. Qe1 {[%emt 0:00:03]} (29. Qc1 $1 $11) 29... Rxd1 {[%emt 0:00:01]} (29... Nb4 $15 30. Nxb4 axb4) 30. Qxd1 $11 {[%emt 0:00:01]} Qd7 {[%emt 0:00:05]} 31. Qxd7 {[%emt 0:00:01]} Nxd7 {[%emt 0:00:02]} 32. Na4 {[%emt 0:00:02]} Bd8 {[%emt 0:00:06]} 33. Bd3 {[%emt 0:00:05]} f6 {[%emt 0:00:03]} 34. Ke2 {[%emt 0:00:01]} Kg7 {[%emt 0:00:06]} 35. a3 {[%emt 0:00:03][%cal Ba2a3,Ba3b4,Bb4b5][%mdl 32]} Kf7 {[%emt 0:00:05]} 36. b4 {[%emt 0:00:08]} axb4 {[%emt 0:00:02]} 37. axb4 {[%emt 0:00:01]} Ke8 {[%emt 0:00:10] [#]} ({Black should try} 37... Be7 $14) 38. Kd2 $1 $16 {[%emt 0:00:01]} Kf7 {[%emt 0:00:04]} 39. Kc3 {[%emt 0:00:03]} c5 {[%emt 0:00:03] [#]} 40. b5 $1 {[%emt 0:00:03]} Nc7 {[%emt 0:00:04]} 41. Bc1 {[%emt 0:00:04]} Ke7 {[%emt 0:00:03]} 42. Ne3 {[%emt 0:00:01]} Ne8 {[%emt 0:00:03]} 43. Nd5+ {[%emt 0:00:04]} ({White should play} 43. Nf5+ Bxf5 44. exf5) 43... Bxd5 {[%emt 0:00:01]} 44. exd5 {[%emt 0:00:04]} (44. cxd5 $16 f5 45. exf5 (45. gxf5 Ndf6 $11)) 44... Nd6 $11 {[%emt 0:00:02]} 45. Nb2 {[%emt 0:00:05]} Nf8 {[%emt 0:00:04]} (45... f5 $11) 46. Nd1 $16 {[%emt 0:00:00] White now steadily converts the win. White is clearly better.} Nd7 {[%emt 0:00:37]} 47. Ne3 Nf8 {[%emt 0:00:00]} (47... e4 $16 {was worth a try.} 48. fxe4 (48. Bxe4 Ne5 $16) 48... Bc7) 48. Nf5+ $18 {[%emt 0:00:02]} Nxf5 {[%emt 0:00:00]} 49. Bxf5 {[%emt 0:00:01][%mdl 4096] Endgame KBB-KBN} Bc7 {[%emt 0:00:00]} 50. Kd3 {[%emt 0:00:02]} Bd6 {[%emt 0:00:00]} 51. Ke4 {[%emt 0:00:02]} Kf7 {[%emt 0:00:00]} 52. Bc8 {[%emt 0:00:03]} Bc7 {[%emt 0:00:00]} 53. Kf5 {[%emt 0:00:01]} Bd6 {[%emt 0:00:00]} 54. Bd2 {[%emt 0:00:01]} Bc7 {[%emt 0:00:00]} 55. Bc3 {[%emt 0:00:32]} Bd6 {[%emt 0:00:00]} 56. Bb2 {[%emt 0:00:00]} Bc7 {[%emt 0:00:00]} 57. Bb7 {[%emt 0:00:00]} Bd6 {[%emt 0:00:00]} 58. Bc6 {[%emt 0:00:00]} Bc7 {[%emt 0:00:00]} 59. Bc3 {[%emt 0:00:00]} Bd6 {[%emt 0:00:00]} 60. Ke4 {[%emt 0:00:00]} Bc7 {[%emt 0:00:00]} 61. Bb7 {[%emt 0:00:00]} Bd6 {[%emt 0:00:00] Weighted Error Value: White=0.17 (very precise) /Black=0.20 (precise)} 1/2-1/2

[Event "Romanian Team Blitz Open 2022"]
[Site "Sebes"]
[Date "2022.12.04"]
[Round "8.26"]
[White "Tinta, Gheorghe"]
[Black "Badau, Iancu-Daniel"]
[Result "0-1"]
[ECO "D02"]
[WhiteElo "1855"]
[BlackElo "1792"]
[Annotator "NA COMBH"]
[PlyCount "75"]
[EventDate "2022.12.04"]
[EventType "blitz"]
[EventCountry "ROU"]
[SourceTitle "playchess.com"]
[Source "ChessBase"]
[SourceQuality "1"]
[TimeControl "180+2"]

1. d4 {[%emt 0:00:01]} d5 {[%emt 0:00:00]} 2. Nf3 {[%emt 0:00:01]} Nf6 {[%emt 0:00:01]} 3. g3 {[%emt 0:00:01]} c5 {[%emt 0:00:25]} 4. Bg2 {[%emt 0:00:04]} e6 {[%emt 0:00:18]} 5. O-O {[%emt 0:00:04]} Nc6 {[%emt 0:00:05]} 6. c3 {[%emt 0:00:26]} Be7 {[%emt 0:00:12]} 7. Qa4 {[%emt 0:00:10]} O-O {[%emt 0:00:15]} 8. Nbd2 {[%emt 0:00:10]} Bd7 {[%emt 0:00:06]} 9. Qc2 {[%emt 0:00:03]} Rc8 {[%emt 0:00:08]} 10. dxc5 {[%emt 0:00:09]} Bxc5 {[%emt 0:00:02]} 11. Qd3 {[%emt 0:00:06]} Qc7 {[%emt 0:00:45]} 12. b4 {[%emt 0:00:05]} Bb6 {[%emt 0:00:06]} 13. Bb2 {[%emt 0:00:12]} Ne5 {[%emt 0:00:02]} 14. Nxe5 {[%emt 0:00:11]} Qxe5 {[%emt 0:00:01]} 15. Nf3 {[%emt 0:00:05]} Qd6 {[%emt 0:00:08]} 16. a4 {[%emt 0:00:07]} a6 {[%emt 0:00:02]} 17. a5 {[%emt 0:00:07]} Bb5 {[%emt 0:00:07]} 18. Qd1 {[%emt 0:00:21]} Ba7 {[%emt 0:00:08]} 19. c4 {[%emt 0:00:14]} Rxc4 {[%emt 0:00:22]} 20. Bxf6 {[%emt 0:00:12]} gxf6 {[%emt 0:00:01]} 21. Qd2 {[%emt 0:00:05]} Rfc8 {[%emt 0:00:16]} 22. Qh6 {[%emt 0:00:10]} Qf8 {[%emt 0:00:07]} 23. Qxf6 {[%emt 0:00:05]} Qg7 {[%emt 0:00:01]} 24. Qe7 {[%emt 0:00:18]} R4c7 {[%emt 0:00:02]} 25. Qh4 {[%emt 0:00:05]} Rc4 {[%emt 0:00:01]} 26. Qh3 {[%emt 0:00:03]} Rxb4 {[%emt 0:00:03]} 27. Rfe1 {[%emt 0:00:03]} Rb2 {[%emt 0:00:02]} 28. Nh4 {[%emt 0:00:06]} Bxe2 {[%emt 0:00:04]} 29. Bxd5 {[%emt 0:00:04]} Bg4 {[%emt 0:00:03]} 30. Qg2 {[%emt 0:00:07]} Rxf2 {[%emt 0:00:01]} 31. Qxf2 {[%emt 0:00:02]} Bxf2+ {[%emt 0:00:01]} 32. Kxf2 {[%emt 0:00:02]} exd5 {[%emt 0:00:01]} 33. Rad1 {[%emt 0:00:04]} Qb2+ {[%emt 0:00:01]} 34. Kg1 {[%emt 0:00:04]} Be6 {[%emt 0:00:05]} 35. Ng2 {[%emt 0:00:02]} Bh3 {[%emt 0:00:01]} 36. Nf4 {[%emt 0:00:01]} Be6 {[%emt 0:00:01]} 37. Rf1 {[%emt 0:00:06]} Qb4 {[%emt 0:00:12]} 38. Rf2 {[%emt 0:00:00]} 0-1

[Event "Romanian Team Blitz Open 2022"]
[Site "Sebes"]
[Date "2022.12.04"]
[Round "8.27"]
[White "Denes, Attila-Norbert"]
[Black "Dumitrascu, Daniel"]
[Result "1-0"]
[ECO "B23"]
[WhiteElo "1755"]
[BlackElo "1694"]
[Annotator "NA COMBH"]
[PlyCount "81"]
[EventDate "2022.12.04"]
[EventType "blitz"]
[EventCountry "ROU"]
[SourceTitle "playchess.com"]
[Source "ChessBase"]
[SourceQuality "1"]
[TimeControl "180+2"]

1. e4 {[%emt 0:00:02]} c5 {[%emt 0:00:02]} 2. Nc3 {[%emt 0:00:01]} Nc6 {[%emt 0:00:04]} 3. f4 {[%emt 0:00:01]} d6 {[%emt 0:00:08]} 4. Nf3 {[%emt 0:00:01]} g6 {[%emt 0:00:02]} 5. Bc4 {[%emt 0:00:01]} Bg7 {[%emt 0:00:13]} 6. O-O {[%emt 0:00:07]} Bg4 {[%emt 0:00:08]} 7. Bxf7+ {[%emt 0:00:07]} Kf8 {[%emt 0:00:13]} 8. Bc4 {[%emt 0:00:41]} Nd4 {[%emt 0:00:03]} 9. Be2 {[%emt 0:00:55]} Nxe2+ {[%emt 0:00:05]} 10. Qxe2 {[%emt 0:00:01]} a6 {[%emt 0:00:12]} 11. d3 {[%emt 0:00:03]} b5 {[%emt 0:00:06]} 12. Kh1 {[%emt 0:00:11]} Ke8 {[%emt 0:00:02]} 13. Be3 {[%emt 0:00:10]} Bd7 {[%emt 0:00:05]} 14. e5 {[%emt 0:00:32]} Qc7 {[%emt 0:00:17]} 15. Ne4 {[%emt 0:00:11]} Bc6 {[%emt 0:00:18]} 16. exd6 {[%emt 0:00:05]} exd6 {[%emt 0:00:01]} 17. Nxd6+ {[%emt 0:00:12]} Kd7 {[%emt 0:00:07]} 18. Bxc5 {[%emt 0:00:05]} Nh6 {[%emt 0:00:12]} 19. Ne5+ {[%emt 0:00:05]} Bxe5 {[%emt 0:00:01]} 20. Qxe5 {[%emt 0:00:01]} Rae8 {[%emt 0:00:57]} 21. Qg7+ {[%emt 0:00:02]} Re7 {[%emt 0:00:08]} 22. Qxh8 {[%emt 0:00:06]} Bxg2+ {[%emt 0:00:01]} 23. Kxg2 {[%emt 0:00:03]} Qxc5 {[%emt 0:00:01]} 24. Ne4 {[%emt 0:00:02]} Qxc2+ {[%emt 0:00:04]} 25. Nf2 {[%emt 0:00:01]} Nf5 {[%emt 0:00:00]} 26. Qc3 {[%emt 0:00:02]} Ne3+ {[%emt 0:00:00]} 27. Kg1 {[%emt 0:00:03]} Qe2 {[%emt 0:00:00]} 28. Rae1 {[%emt 0:00:03]} Qf3 {[%emt 0:00:00]} 29. Qd4+ {[%emt 0:00:02]} Ke8 {[%emt 0:00:01]} 30. Rxe3 {[%emt 0:00:02]} Rxe3 {[%emt 0:00:31]} 31. Qc5 {[%emt 0:00:03]} Qxf4 {[%emt 0:00:00]} 32. Qc8+ {[%emt 0:00:02]} Kf7 {[%emt 0:00:00]} 33. Qg4 {[%emt 0:00:02]} Qd6 {[%emt 0:00:00]} 34. Nd1+ {[%emt 0:00:01]} Kg8 {[%emt 0:00:00]} 35. Nxe3 {[%emt 0:00:01]} Qxd3 {[%emt 0:00:00]} 36. Qf3 {[%emt 0:00:07]} Kg7 {[%emt 0:00:01]} 37. Qf7+ {[%emt 0:00:00]} Kh6 {[%emt 0:00:01]} 38. Qf8+ {[%emt 0:00:00]} Kh5 {[%emt 0:00:01]} 39. Qf3+ {[%emt 0:00:00]} Kh6 {[%emt 0:00:00]} 40. Nf5+ {[%emt 0:00:00]} gxf5 {[%emt 0:00:02]} 41. Qxd3 {[%emt 0:00:01]} 1-0

[Event "Romanian Team Blitz Open 2022"]
[Site "Sebes"]
[Date "2022.12.04"]
[Round "8.28"]
[White "Carac, Radu-Ionut"]
[Black "Serban, Cristian-Stefan"]
[Result "1-0"]
[ECO "D24"]
[WhiteElo "1569"]
[BlackElo "2131"]
[Annotator "TA"]
[PlyCount "69"]
[EventDate "2022.12.04"]
[EventType "blitz"]
[EventCountry "ROU"]
[SourceTitle "playchess.com"]
[Source "ChessBase"]
[SourceQuality "1"]
[TimeControl "180+2"]

{[%evp 11,68,42,52,67,61,30,39,36,78,53,83,69,128,85,129,124,187,93,195,186,198,117,252,261,237,231,518,504,613,439,440,433,488,465,988,975,1239,1210,1424,1430,1588,1596,2569,2437,2130,1980,1794,1701,29987,29988,29992,29989,29995,29996,29996,29997,29998,29999,29999]} 1. d4 {[%emt 0:00:01]} d5 {[%emt 0:00:00]} 2. c4 {[%emt 0:00:02]} dxc4 {[%emt 0:00:03]} 3. e3 {[%emt 0:00:01]} Bf5 {[%emt 0:00:06]} 4. Bxc4 {[%emt 0:00:07]} e6 {[%emt 0:00:06]} 5. Nc3 {[%emt 0:00:01]} Nf6 {[%emt 0:00:01]} 6. Nf3 {[%emt 0:00:02]} Nbd7 {[%emt 0:00:10]} 7. O-O {[%emt 0:00:03] D24: Queen's Gambit Accepted: 3 Nf3 Nf6 4 Nc3.} Bb4 {[%emt 0:00:04] [#]} 8. a3 $146 {[%emt 0:00:07]} (8. Qb3 {seems wilder.} c5 9. d5 Bxc3 10. dxe6 Bxe6 11. Bxe6 fxe6 12. Qxe6+ Qe7 13. Qxe7+ Kxe7 14. bxc3 Rhe8 15. Rd1) ({Predecessor:} 8. Qe2 Ne4 9. Bd3 Nxc3 10. bxc3 Bxd3 11. Qxd3 Be7 12. e4 O-O 13. Rb1 b6 14. Be3 Re8 15. Rfd1 Nf6 16. Ne5 Qc8 17. Nc6 Bf8 {½-½ (17) Arizmendi Martinez,J (2524)-Larino Nieto,D (2426) Ceuta 2008}) 8... Bxc3 {[%emt 0:00:02]} 9. bxc3 {[%emt 0:00:02] White is slightly better.} Qe7 {[%emt 0:00:01]} 10. Bd3 {[%emt 0:00:05]} Bg6 {[%emt 0:00:08]} 11. Rb1 {[%emt 0:00:03]} Nb6 {[%emt 0:00:18]} (11... b6 $14) 12. Re1 {[%emt 0:00:03]} O-O {[%emt 0:00:04]} 13. e4 {[%emt 0:00:08]} c6 {[%emt 0:02:25]} (13... Bh5 $16 14. a4 a5) 14. Qb3 {[%emt 0:00:46]} (14. a4 $18) 14... Rad8 {[%emt 0:00:00]} (14... c5 $16) 15. a4 $18 {[%emt 0:00:05] [#] Ba3 is the strong threat.} Qc7 {[%emt 0:00:00]} 16. a5 {[%emt 0:00:14] Prevents c5.} (16. Ne5 $18) 16... Nc8 {[%emt 0:00:00] A mistake that costs the game.} (16... Nbd7 $16 {was necessary.}) 17. Ba3 {[%emt 0:00:31]} ({Much less strong is} 17. Qxb7 $6 Qxb7 18. Rxb7 Nxe4 $18) 17... Rfe8 {[%emt 0:00:00]} 18. Qxb7 {[%emt 0:00:11]} Qxb7 {[%emt 0:00:10] [#]} (18... Qxa5 19. Rb3 Nd6 20. Bxd6 (20. Qxc6 Ndxe4 21. Bxe4 Rc8 $16) 20... Rxd6) 19. Rxb7 {[%emt 0:00:02]} Rd7 {[%emt 0:00:00]} 20. Rxd7 {[%emt 0:00:16]} Nxd7 {[%emt 0:00:00]} 21. Rb1 {[%emt 0:00:17]} h6 {[%emt 0:00:00]} 22. Rb7 {[%emt 0:00:08]} Ne7 {[%emt 0:00:04]} (22... Nf6 $142 23. Ne5 Bxe4) 23. Rxd7 {[%emt 0:00:02]} Nc8 {[%emt 0:00:03]} 24. Ne5 {[%emt 0:00:04]} Kh7 {[%emt 0:00:01]} 25. Nxf7 {[%emt 0:00:09]} Bxf7 {[%emt 0:00:01]} 26. Rxf7 {[%emt 0:00:01]} Rd8 {[%emt 0:00:00]} 27. e5+ {[%emt 0:00:01][%cal Be4e5,Be5d6,Bd6d7,Bd7e8][%mdl 32]} Kh8 {[%emt 0:00:01]} 28. Be7 {[%emt 0:00:06]} Re8 {[%emt 0:00:01]} 29. Bd6 {[%emt 0:00:02]} Nxd6 {[%emt 0:00:01]} 30. exd6 {[%emt 0:00:01] KRB-KR. White mates.} Rd8 {[%emt 0:00:00]} 31. d7 {[%emt 0:00:02]} a6 {[%emt 0:00:02]} 32. Bg6 {[%emt 0:00:03]} Kg8 {[%emt 0:00:02]} 33. Re7 {[%emt 0:00:01]} Kf8 {[%emt 0:00:02]} 34. Re8+ {[%emt 0:00:01]} Rxe8 {[%emt 0:00:14]} 35. dxe8=R# {Weighted Error Value: White=0.37/Black=0.85} 1-0

[Event "Romanian Team Blitz Open 2022"]
[Site "Sebes"]
[Date "2022.12.04"]
[Round "8.29"]
[White "Baratosi, Daniel"]
[Black "Raditoiu, Laurentiu"]
[Result "1-0"]
[ECO "B10"]
[WhiteElo "2335"]
[BlackElo "1316"]
[Annotator "TA"]
[PlyCount "55"]
[EventDate "2022.12.04"]
[EventType "blitz"]
[EventCountry "ROU"]
[SourceTitle "playchess.com"]
[Source "ChessBase"]
[SourceQuality "1"]
[TimeControl "180+2"]

{[%evp 9,55,-4,7,-2,5,0,26,0,-2,0,0,0,-7,-12,19,0,95,57,126,106,155,163,159,122,134,125,129,86,85,78,77,26,498,272,333,216,224,212,360,301,520,397,559,546,29989,29990,29993,29994]} 1. e4 {[%emt 0:00:02]} d5 {[%emt 0:00:01]} 2. exd5 {[%emt 0:00:03]} c6 {[%emt 0:00:01]} 3. Nf3 {[%emt 0:00:11]} cxd5 {[%emt 0:00:02]} 4. Ne5 {[%emt 0:00:01]} Nc6 {[%emt 0:00:09]} 5. Bb5 {[%emt 0:00:07]} Bd7 {[%emt 0:00:01]} 6. Bxc6 {[%emt 0:00:07] B10: Caro-Kann: 2 d3 and 2 c4.} bxc6 {[%emt 0:00:07]} 7. O-O {[%emt 0:00:24][%cal Bh1f1,Bf1e1,Be1e3,Be3b3][%mdl 32]} e6 {[%emt 0:00:01]} 8. Qh5 {[%emt 0:00:06][%csl Ge5][%cal Rh5f7] White has an edge.} g6 {[%emt 0:00:08]} 9. Qf3 $40 {[%emt 0:00:02][%csl Ge5][%cal Rf3f7][%mdl 128] White has some attack.} f6 {[%emt 0:00:08]} 10. Nxd7 {[%emt 0:00:06]} Qxd7 {[%emt 0:00:02]} 11. d4 {[%emt 0:00:01]} Bd6 {[%emt 0:00:09] [#]} 12. Re1 $146 {[%emt 0:00:02]} ({Predecessor:} 12. c4 Kf7 13. Nc3 Ne7 14. Re1 h5 15. Bf4 Nf5 16. Rad1 g5 17. Bxd6 Qxd6 18. Qd3 {½-½ (97) Migot,T (2353)-Elgersma,O (2282) Chess.com INT 2021}) 12... O-O-O {[%emt 0:00:07]} (12... Kf7 $11 {remains equal.}) 13. c4 {[%emt 0:00:03]} e5 {[%emt 0:00:15]} ({Black should play} 13... Ne7 $14) 14. cxd5 {[%emt 0:00:03]} cxd5 {[%emt 0:00:06]} ({Black should try} 14... Ne7) 15. Qxd5 $16 {[%emt 0:00:17] aiming for Qa8+.} Kb8 {[%emt 0:00:20] Prevents Qa8+.} 16. Re3 {[%emt 0:00:55]} Bc7 {[%emt 0:00:42][%csl LRd4,LRd5]} 17. Rb3+ {[%emt 0:00:27]} Bb6 {[%emt 0:00:02]} 18. Qf3 {[%emt 0:00:07] a4 is the strong threat. White is more active.} Ne7 {[%emt 0:00:13]} 19. Nc3 {[%emt 0:00:04] And now a4 would win.} (19. Qxf6 $2 Qxd4 20. h4 (20. Qxe7 $2 Qd1#) 20... Nd5 $19) 19... Nc6 {[%emt 0:00:15]} 20. Be3 {[%emt 0:00:10]} (20. Qxf6 Rhf8 21. Qg5 (21. Qh4 Nxd4 22. Rxb6+ axb6 $17) 21... Rf5 $17) (20. d5 $1 $16 {[%cal Rd5c6]} Nd4 21. Rxb6+ $1 (21. Qxf6 Nxb3 22. axb3 Qd6 $11) 21... axb6 22. Qxf6) 20... f5 $2 {[%emt 0:00:13][%mdl 8192] Black cannot hold the game after this.} (20... Nxd4 $11 21. Bxd4 (21. Qxf6 Nxb3 22. axb3 Qd6 $15) 21... exd4) 21. Rd1 {[%emt 0:00:10]} (21. dxe5 $142 Qb7 22. Bxb6 axb6 23. e6) 21... e4 {[%emt 0:00:10]} 22. Qg3+ {[%emt 0:00:02]} Ka8 {[%emt 0:00:05]} 23. d5 {[%emt 0:00:03][%cal Oe3b6] Strongly threatening Bxb6!} Bc7 {[%emt 0:00:06]} (23... Bxe3 $142 24. Qxe3 (24. fxe3 Na5 $16) 24... Na5) 24. Qh4 {[%emt 0:00:03]} (24. dxc6 $2 Qxd1+ 25. Nxd1 Rxd1#) 24... Ne5 $2 {[%emt 0:00:09]} (24... Bb8 25. Bg5 (25. dxc6 $2 Qxd1+ 26. Nxd1 Rxd1#) 25... Ne5 26. Bxd8 Rxd8) 25. Nb5 {[%emt 0:00:04]} g5 {[%emt 0:00:10]} (25... Nc6 $142 26. Nxc7+ (26. dxc6 $2 Qxd1#) 26... Qxc7) 26. Qh6 $18 {[%emt 0:00:02]} ({Weaker is} 26. Qxg5 Nf3+ 27. gxf3 Rhg8 $16) 26... Ng4 {[%emt 0:00:12] [#]} 27. Qa6 {[%emt 0:00:03][%csl Gb5,Ge3][%cal Ra6a7]} ({Not} 27. Qxg5 Bxh2+ 28. Kh1 Rhg8 $14) 27... Bb6 {[%emt 0:00:00]} 28. Bxb6 {[%emt 0:00:07] Weighted Error Value: White=0.41/Black=0.91} 1-0

[Event "Romanian Team Blitz Open 2022"]
[Site "Sebes"]
[Date "2022.12.04"]
[Round "8.30"]
[White "Schmit, Andrei-Marian"]
[Black "Nagy-Elek, Tamas"]
[Result "0-1"]
[ECO "D02"]
[WhiteElo "1323"]
[BlackElo "1976"]
[Annotator "TA"]
[PlyCount "48"]
[EventDate "2022.12.04"]
[EventType "blitz"]
[EventCountry "ROU"]
[SourceTitle "playchess.com"]
[Source "ChessBase"]
[SourceQuality "1"]
[TimeControl "180+2"]

{[%evp 16,48,0,-26,-13,-23,-24,-56,12,-56,-48,-39,-44,-41,-52,-451,-454,-458,-451,-481,-479,-519,-519,-568,-490,-670,-676,-688,-683,-824,-793,-859,-848,-905,-897]} 1. d4 {[%emt 0:00:01]} d5 {[%emt 0:00:01]} 2. Nf3 {[%emt 0:00:01]} Nf6 {[%emt 0:00:01]} 3. Bf4 {[%emt 0:00:01]} c5 {[%emt 0:00:04]} 4. c3 {[%emt 0:00:02]} Nc6 {[%emt 0:00:03]} 5. e3 {[%emt 0:00:01]} Qb6 {[%emt 0:00:08]} 6. Qb3 {[%emt 0:00:01]} c4 {[%emt 0:00:01]} 7. Qxb6 {[%emt 0:00:03]} axb6 {[%emt 0:00:02][%cal Ba7b6,Bb6b5,Bb5b4][%mdl 32]} 8. Be2 {[%emt 0:00:03]} b5 {[%emt 0:00:02]} 9. Nbd2 {[%emt 0:00:03]} e6 {[%emt 0:00:07] D02: 1 d4 d5 2 Nf3 sidelines, including 2...Nf6 3 g3 and 2...Nf6 3 Bf4.} 10. O-O {[%emt 0:00:02]} b4 {[%emt 0:00:08]} 11. Rfc1 {[%emt 0:00:22] [#]} Be7 $146 {[%emt 0:00:06]} (11... b5 $15) ({Predecessor:} 11... Bd7 12. Ne5 Be7 13. g4 h6 14. f3 g5 15. Bg3 b5 16. Kg2 h5 17. h3 Ra7 18. Nxc6 Bxc6 {½-½ (34) Dermitzakis,P (1776)-Loukopoulos,P (2031) Athens 2021}) 12. Ne5 {[%emt 0:00:02]} ({White should try} 12. cxb4 $11 Bxb4 13. a3) 12... O-O {[%emt 0:00:09]} 13. Nxc6 {[%emt 0:00:07]} bxc6 {[%emt 0:00:01]} 14. cxb4 {[%emt 0:00:01]} Bxb4 {[%emt 0:00:01]} 15. a3 $2 {[%emt 0:00:02][%mdl 8192] [#] White does not recover from this.} Bxd2 $19 {[%emt 0:00:01] Black is clearly winning.} 16. Rc2 {[%emt 0:00:01]} Bb4 {[%emt 0:00:04]} 17. Rac1 {[%emt 0:00:06]} Be7 {[%emt 0:00:04]} 18. f3 {[%emt 0:00:07]} Bd7 {[%emt 0:00:20]} 19. Kf2 {[%emt 0:00:09]} Nh5 {[%emt 0:00:11] [#] Hoping for ...Nxf4.} 20. Bg3 {[%emt 0:00:02]} Nxg3 {[%emt 0:00:01]} 21. hxg3 {[%emt 0:00:01]} Rfb8 {[%emt 0:00:06]} 22. e4 {[%emt 0:00:07]} Rb7 {[%emt 0:00:07]} 23. Ke3 {[%emt 0:00:06]} Rab8 {[%emt 0:00:04]} 24. Rb1 {[%emt 0:00:02]} Bxa3 {[%emt 0:00:02] Weighted Error Value: White=0.85/Black=0.13 (very precise)} 0-1

[Event "Romanian Team Blitz Open 2022"]
[Site "Sebes"]
[Date "2022.12.04"]
[Round "8.31"]
[White "Chiheri, Alexandru-Virgil"]
[Black "Topircean, Ioan"]
[Result "1-0"]
[ECO "C42"]
[WhiteElo "1937"]
[BlackElo "1290"]
[Annotator "TA"]
[PlyCount "37"]
[EventDate "2022.12.04"]
[EventType "blitz"]
[EventCountry "ROU"]
[SourceTitle "playchess.com"]
[Source "ChessBase"]
[SourceQuality "1"]
[TimeControl "180+2"]

{[%evp 9,37,110,102,93,98,101,153,132,184,178,289,235,561,562,1879,1929,2320,800,29991,29992,29992,29993,29993,29994,29994,29995,29999,29996,29999,29995]} 1. e4 {[%emt 0:00:01]} e5 {[%emt 0:00:02]} 2. Nf3 {[%emt 0:00:01]} Nf6 {[%emt 0:00:02]} 3. Nxe5 {[%emt 0:00:02]} Qe7 {[%emt 0:00:02]} 4. d4 {[%emt 0:00:10]} Nxe4 {[%emt 0:00:03]} 5. Bd3 {[%emt 0:00:10]} Nf6 {[%emt 0:00:10] [#] Strongly threatening ...d6.} 6. O-O {[%emt 0:00:03][%cal Bh1f1,Bf1e1,Be1e8,Be8h8][%mdl 32] C42: Petroff Defence: 3 Nxe5 and unusual White 3rd moves.} d6 {[%emt 0:00:09]} (6... Nc6 $2 7. Re1 Nxd4 {[#]} 8. Nxf7 $1 {[%mdl 512]} Kxf7 9. Rxe7+ Bxe7 10. Nd2 $18) 7. Nf3 {[%emt 0:00:01][%cal Be5f3,Bf3g5,Bg5e6,Be6g7][%mdl 32] [#] aiming for Re1.} Be6 $146 {[%emt 0:00:15]} (7... Qd8 $142) ({Predecessor:} 7... Bg4 8. Re1 Be6 9. c4 c6 10. Nc3 Qc7 11. d5 cxd5 12. cxd5 Nxd5 13. Nxd5 Qd7 {1-0 (24) Jarabinsky,M (2280)-Arango Marin,S (809) LSS email 2015}) 8. c4 {[%emt 0:00:02] Threatens to win with d5. White is clearly better.} c6 {[%emt 0:00:03] Prevents d5.} (8... Qd7 $16 {keeps fighting.} 9. Re1 (9. d5 Bg4 $16) 9... Be7) 9. Nc3 {[%emt 0:00:01]} d5 {[%emt 0:00:06]} (9... Qd8 $142 10. d5 Bg4) 10. Re1 {[%emt 0:00:03]} Qc7 $2 {[%emt 0:00:15]} (10... dxc4 {is a better chance.} 11. Bxc4 Bxc4) 11. Ng5 $18 {[%emt 0:00:14]} Ng4 {[%emt 0:00:13]} 12. Qxg4 {[%emt 0:00:02] Active counter play!} h5 {[%emt 0:00:15]} 13. Nxe6 {[%emt 0:00:15]} Qd6 {[%emt 0:00:31]} 14. Nxg7+ {[%emt 0:00:21] White mates.} Kd8 {[%emt 0:00:17]} 15. Re8+ {[%emt 0:00:13]} Kc7 {[%emt 0:00:11]} 16. Qc8+ {[%emt 0:00:04]} Kb6 {[%emt 0:00:12]} 17. c5+ {[%emt 0:00:02]} Qxc5 {[%emt 0:00:07]} 18. dxc5+ {[%emt 0:00:02]} Bxc5 {[%emt 0:00:45]} 19. Rxh8 {[%emt 0:01:53] Black did not feel at home in the position after the opening.   Weighted Error Value: White=0.11 (very precise) /Black=1.01} 1-0